[Event "Schack-SM 2024: Mastarklassen"]
[Site "Fortnox Arena, Hejaregatan 5, Vaxjo, Sweden"]
[Date "2024.07.03"]
[Round "5.13"]
[White "Ask, Josef"]
[Black "Johnson, Daniel"]
[Result "1/2-1/2"]
[TimeControl "90 minutes for 40 moves + 30 minutes for the rest of the game + 30 seconds per move from move one."]
[WhiteTitle "FM"]
[WhiteElo "2136"]
[BlackElo "2126"]

1. Nf3 {[%clk 01:30:48]} {[%emt 00:00:11]} d5 {[%clk 01:25:29]} {[%emt
00:05:23]} 2. b3 {[%clk 01:30:30]} {[%emt 00:00:55]} Nf6 {[%clk 01:24:41]}
{[%emt 00:01:19]} 3. Bb2 {[%clk 01:30:42]} {[%emt 00:00:17]} c6 {[%clk
01:22:37]} {[%emt 00:02:35]} 4. g3 {[%clk 01:30:11]} {[%emt 00:01:02]} Bf5
{[%clk 01:22:26]} {[%emt 00:00:41]} 5. Bg2 {[%clk 01:30:01]} {[%emt 00:00:40]}
h6 {[%clk 01:21:54]} {[%emt 00:01:01]} 6. d3 {[%clk 01:29:03]} {[%emt
00:01:28]} e6 {[%clk 01:21:41]} {[%emt 00:00:43]} 7. O-O {[%clk 01:28:25]}
{[%emt 00:01:09]} Bh7 {[%clk 01:19:29]} {[%emt 00:02:41]} 8. Nbd2 {[%clk
01:27:28]} {[%emt 00:01:27]} Be7 {[%clk 01:16:48]} {[%emt 00:03:12]} 9. a3
{[%clk 01:26:30]} {[%emt 00:01:28]} a5 {[%clk 01:13:15]} {[%emt 00:04:02]} 10.
Ra2 {[%clk 01:25:21]} {[%emt 00:01:39]} O-O {[%clk 01:11:30]} {[%emt 00:02:15]}
11. Qa1 {[%clk 01:24:30]} {[%emt 00:01:22]} Nbd7 {[%clk 01:05:03]} {[%emt
00:06:57]} 12. h3 {[%clk 01:21:59]} {[%emt 00:03:00]} Qb6 {[%clk 00:57:54]}
{[%emt 00:07:38]} 13. Ne5 {[%clk 01:17:22]} {[%emt 00:05:08]} Nxe5 {[%clk
00:52:20]} {[%emt 00:06:05]} 14. Bxe5 {[%clk 01:17:45]} {[%emt 00:00:06]} Rfd8
{[%clk 00:52:45]} {[%emt 00:00:05]} 15. Kh2 {[%clk 01:13:03]} {[%emt 00:05:12]}
Ne8 {[%clk 00:48:56]} {[%emt 00:04:19]} 16. e3 {[%clk 01:06:46]} {[%emt
00:06:48]} Bf6 {[%clk 00:47:35]} {[%emt 00:01:51]} 17. Nf3 {[%clk 01:03:42]}
{[%emt 00:03:34]} Bxe5 {[%clk 00:44:03]} {[%emt 00:04:02]} 18. Qxe5 {[%clk
01:03:40]} {[%emt 00:00:30]} Qc7 {[%clk 00:41:08]} {[%emt 00:03:26]} 19. Qa1
{[%clk 00:59:54]} {[%emt 00:04:17]} c5 {[%clk 00:39:23]} {[%emt 00:02:15]} 20.
Nd2 {[%clk 00:57:51]} {[%emt 00:02:32]} Nf6 {[%clk 00:35:09]} {[%emt 00:04:44]}
21. f4 {[%clk 00:48:38]} {[%emt 00:09:43]} b5 {[%clk 00:30:02]} {[%emt
00:05:37]} 22. a4 {[%clk 00:46:34]} {[%emt 00:02:36]} b4 {[%clk 00:29:03]}
{[%emt 00:01:27]} 23. Rf2 {[%clk 00:44:29]} {[%emt 00:02:35]} Rac8 {[%clk
00:27:33]} {[%emt 00:02:00]} 24. Qh1 {[%clk 00:40:06]} {[%emt 00:04:52]} Qb6
{[%clk 00:23:17]} {[%emt 00:04:48]} 25. Re2 {[%clk 00:38:17]} {[%emt 00:02:19]}
Qc7 {[%clk 00:23:18]} {[%emt 00:00:28]} 26. Rf2 {[%clk 00:33:02]} {[%emt
00:05:46]} Ne8 {[%clk 00:21:15]} {[%emt 00:02:32]} 27. e4 {[%clk 00:25:17]}
{[%emt 00:08:16]} dxe4 {[%clk 00:20:29]} {[%emt 00:01:15]} 28. Nxe4 {[%clk
00:24:01]} {[%emt 00:01:47]} Nd6 {[%clk 00:18:19]} {[%emt 00:02:39]} 29. Nxd6
{[%clk 00:22:32]} {[%emt 00:02:01]} Rxd6 {[%clk 00:18:22]} {[%emt 00:00:25]} 30.
Ra1 {[%clk 00:21:56]} {[%emt 00:01:06]} Rd4 {[%clk 00:17:47]} {[%emt 00:01:05]}
31. Re1 {[%clk 00:21:25]} {[%emt 00:01:01]} Qd6 {[%clk 00:15:06]} {[%emt
00:03:11]} 32. Rfe2 {[%clk 00:15:51]} {[%emt 00:06:05]} h5 {[%clk 00:12:50]}
{[%emt 00:02:45]} 33. h4 {[%clk 00:14:17]} {[%emt 00:02:04]} g5 {[%clk
00:10:49]} {[%emt 00:02:32]} 34. hxg5 {[%clk 00:13:38]} {[%emt 00:01:08]} c4
{[%clk 00:07:17]} {[%emt 00:04:03]} 35. dxc4 {[%clk 00:11:44]} Bf5 {[%clk
00:04:23]} {[%emt 00:05:47]} 36. Qf1 {[%clk 00:08:56]} Rc5 {[%clk 00:02:23]}
{[%emt 00:05:47]} 37. Qf2 {[%emt 00:04:55]} h4 {[%clk 00:00:32]} 38. Re5 {[%clk
00:03:21]} {[%emt 00:04:03]} hxg3+ {[%clk 00:00:43]} {[%emt 00:00:19]} 39. Kxg3
{[%clk 00:03:28]} {[%emt 00:00:23]} Rxe5 {[%clk 00:00:44]} {[%emt 00:00:28]} 40.
Rxe5 {[%clk 00:03:38]} {[%emt 00:00:20]} Rd2 {[%clk 00:00:32]} {[%emt
00:00:43]} 41. Re2 {[%clk 00:00:35]} {[%emt 00:03:32]} Rxc2 {[%clk 00:23:57]}
{[%emt 00:07:05]} 42. Rxc2 {[%clk 00:23:04]} {[%emt 00:08:01]} Qd3+ {[%clk
00:24:19]} {[%emt 00:00:07]} 43. Bf3 {[%clk 00:17:03]} {[%emt 00:06:33]} Qxc2
{[%clk 00:24:32]} {[%emt 00:00:17]} 44. Qe3 {[%clk 00:15:51]} {[%emt 00:01:41]}
Qc3 {[%clk 00:19:31]} {[%emt 00:05:31]} 45. Kf2 {[%clk 00:15:11]} {[%emt
00:01:10]} Bc2 {[%clk 00:17:51]} {[%emt 00:02:10]} 46. c5 {[%clk 00:12:54]}
{[%emt 00:02:48]} Bxb3 {[%clk 00:13:25]} {[%emt 00:04:56]} 47. Qxc3 {[%clk
00:10:53]} {[%emt 00:02:30]} bxc3 {[%clk 00:13:49]} {[%emt 00:00:06]} 48. Ke3
{[%clk 00:11:14]} {[%emt 00:00:10]} Bxa4 {[%clk 00:12:26]} {[%emt 00:01:53]} 49.
c6 {[%clk 00:10:54]} {[%emt 00:00:49]} Bb5 {[%clk 00:03:53]} {[%emt 00:09:03]}
50. c7 {[%clk 00:07:33]} {[%emt 00:03:51]} Ba6 {[%clk 00:02:59]} {[%emt
00:01:24]} 51. Bc6 {[%clk 00:06:43]} {[%emt 00:01:21]} Bc8 {[%clk 00:03:11]}
{[%emt 00:00:17]} 52. Kd3 {[%clk 00:04:59]} {[%emt 00:02:15]} Kf8 {[%clk
00:01:31]} {[%emt 00:02:09]} 53. Kxc3 {[%clk 00:05:06]} {[%emt 00:00:23]} Ke7
{[%clk 00:01:54]} {[%emt 00:00:07]} 54. Kc4 {[%clk 00:03:44]} {[%emt 00:01:53]}
Kd6 {[%clk 00:02:02]} {[%emt 00:00:21]} 55. Be8 {[%clk 00:03:57]} {[%emt
00:00:16]} Ke7 {[%clk 00:01:11]} {[%emt 00:01:22]} 56. Ba4 {[%clk 00:03:56]}
{[%emt 00:00:31]} Kd6 {[%clk 00:01:28]} {[%emt 00:00:13]} 57. Kd4 {[%clk
00:03:49]} {[%emt 00:00:36]} Kxc7 {[%clk 00:00:41]} {[%emt 00:01:19]} 58. Be8
{[%clk 00:03:54]} {[%emt 00:00:24]} Kd6 {[%clk 00:00:42]} {[%emt 00:00:29]} 59.
Bxf7 {[%clk 00:04:04]} {[%emt 00:00:20]} a4 {[%clk 00:00:37]} {[%emt 00:00:36]}
60. g6 {[%clk 00:02:46]} {[%emt 00:01:47]} Ke7 {[%clk 00:00:52]} {[%emt
00:00:15]} 61. Kc3 {[%clk 00:01:50]} {[%emt 00:01:27]} Bd7 {[%clk 00:00:58]}
{[%emt 00:00:24]} 62. Kb4 {[%clk 00:01:57]} {[%emt 00:00:23]} Kf6 {[%clk
00:00:48]} {[%emt 00:00:40]} 63. Ka3 {[%clk 00:01:49]} {[%emt 00:00:37]} Bb5
{[%clk 00:01:02]} {[%emt 00:00:15]} 64. Kb4 {[%clk 00:01:30]} {[%emt 00:00:50]}
Bc6 {[%clk 00:01:29]} {[%emt 00:00:04]} 65. Ka3 {[%clk 00:01:26]} {[%emt
00:00:33]} Ke7 {[%clk 00:01:32]} {[%emt 00:00:26]} 66. Kb4 {[%clk 00:01:13]}
{[%emt 00:00:45]} Be8 {[%clk 00:01:36]} {[%emt 00:00:25]} 67. Bxe8 {[%clk
00:00:54]} {[%emt 00:00:49]} Kxe8 {[%clk 00:02:02]} {[%emt 00:00:05]} 68. Kxa4
{[%clk 00:01:12]} {[%emt 00:00:13]} Ke7 {[%clk 00:02:26]} {[%emt 00:00:05]} 69.
Kb4 {[%clk 00:01:21]} {[%emt 00:00:21]} Kf6 {[%clk 00:02:51]} {[%emt 00:00:04]}
70. g7 {[%clk 00:01:25]} {[%emt 00:00:27]} Kxg7 {[%clk 00:03:15]} {[%emt
00:00:06]} 71. Kc5 {[%clk 00:01:31]} {[%emt 00:00:24]} Kf6 {[%clk 00:03:38]}
{[%emt 00:00:07]} 1/2-1/2

[Event "Schack-SM 2024: Mastarklassen"]
[Site "Fortnox Arena, Hejaregatan 5, Vaxjo, Sweden"]
[Date "2024.07.03"]
[Round "5.14"]
[White "Karlsson, Jorgen"]
[Black "Neretljak, Nedzad"]
[Result "1/2-1/2"]
[TimeControl "90 minutes for 40 moves + 30 minutes for the rest of the game + 30 seconds per move from move one."]
[BlackTitle "CM"]
[WhiteElo "2020"]
[BlackElo "2048"]

1. g3 {[%clk 01:30:58]} {[%emt 00:00:02]} e5 {[%clk 01:30:45]} {[%emt
00:00:15]} 2. Bg2 {[%clk 01:31:21]} {[%emt 00:00:06]} d5 {[%clk 01:31:07]}
{[%emt 00:00:08]} 3. c4 {[%clk 01:31:23]} {[%emt 00:00:28]} d4 {[%clk
01:31:24]} {[%emt 00:00:13]} 4. b4 {[%clk 01:31:40]} {[%emt 00:00:13]} a5
{[%clk 01:31:33]} {[%emt 00:00:22]} 5. b5 {[%clk 01:32:04]} {[%emt 00:00:06]}
c6 {[%clk 01:31:19]} {[%emt 00:00:43]} 6. a4 {[%clk 01:32:18]} {[%emt
00:00:17]} Bb4 {[%clk 01:29:16]} {[%emt 00:02:33]} 7. Ba3 {[%clk 01:32:13]}
{[%emt 00:00:35]} c5 {[%clk 01:29:15]} {[%emt 00:00:30]} 8. Bxb4 {[%clk
01:31:21]} {[%emt 00:01:22]} axb4 {[%clk 01:29:29]} {[%emt 00:00:17]} 9. d3
{[%clk 01:31:38]} {[%emt 00:00:12]} Nf6 {[%clk 01:29:05]} {[%emt 00:00:54]} 10.
Nd2 {[%clk 01:31:39]} {[%emt 00:00:30]} Ra7 {[%clk 01:29:27]} {[%emt 00:00:07]}
11. Nb3 {[%clk 01:29:39]} {[%emt 00:02:30]} b6 {[%clk 01:29:49]} {[%emt
00:00:08]} 12. a5 {[%clk 01:29:58]} {[%emt 00:00:12]} Nbd7 {[%clk 01:26:45]}
{[%emt 00:03:34]} 13. axb6 {[%clk 01:23:34]} {[%emt 00:06:54]} Qxb6 {[%clk
01:26:50]} {[%emt 00:00:25]} 14. Rxa7 {[%clk 01:23:40]} {[%emt 00:00:24]} Qxa7
{[%emt 00:00:06]} 15. Qa1 {[%emt 00:00:34]} Qxa1+ {[%clk 01:21:54]} {[%emt
00:04:46]} 16. Nxa1 {[%clk 01:24:03]} {[%emt 00:00:07]} Nb6 {[%clk 01:21:25]}
{[%emt 00:00:58]} 17. Nh3 {[%clk 01:22:58]} {[%emt 00:01:35]} h6 {[%clk
01:20:20]} {[%emt 00:01:35]} 18. Nb3 {[%clk 01:23:06]} {[%emt 00:00:22]} Nfd7
{[%clk 01:18:57]} {[%emt 00:01:53]} 19. Kd2 {[%clk 01:23:11]} {[%emt 00:00:25]}
Ke7 {[%clk 01:17:30]} {[%emt 00:01:57]} 20. Ra1 {[%clk 01:23:20]} {[%emt
00:00:22]} Kd6 {[%clk 01:17:35]} {[%emt 00:00:25]} 21. Ra7 {[%clk 01:23:31]}
{[%emt 00:00:19]} f5 {[%clk 01:16:49]} {[%emt 00:01:14]} 22. e3 {[%clk
01:18:49]} {[%emt 00:05:13]} dxe3+ {[%clk 01:16:21]} {[%emt 00:00:59]} 23. Kxe3
{[%clk 01:17:44]} {[%emt 00:01:35]} g5 {[%clk 01:16:31]} {[%emt 00:00:18]} 24.
f3 {[%clk 01:16:13]} {[%emt 00:02:03]} Re8 {[%clk 01:14:24]} {[%emt 00:02:36]}
25. Nf2 {[%clk 01:16:09]} {[%emt 00:00:35]} Nf6 {[%clk 01:07:07]} {[%emt
00:07:47]} 26. Na5 {[%clk 01:12:43]} {[%emt 00:03:56]} Nbd7 {[%clk 00:53:26]}
{[%emt 00:14:11]} 27. Kd2 {[%clk 01:04:45]} {[%emt 00:08:28]} h5 {[%emt
00:08:46]} 28. h3 {[%clk 00:57:36]} {[%emt 00:00:37]} Rf8 {[%clk 00:43:43]}
{[%emt 00:08:58]} 29. Nd1 {[%clk 00:56:13]} {[%emt 00:01:53]} e4 {[%clk
00:42:52]} {[%emt 00:01:20]} 30. Nc6 {[%clk 00:53:40]} {[%emt 00:03:05]} exd3
{[%clk 00:37:05]} {[%emt 00:06:17]} 31. Nb2 {[%clk 00:39:57]} {[%emt 00:14:13]}
g4 {[%clk 00:31:17]} {[%emt 00:06:17]} 32. hxg4 {[%clk 00:37:47]} {[%emt
00:02:41]} hxg4 {[%clk 00:31:00]} {[%emt 00:00:46]} 33. Nxd3 {[%clk 00:32:17]}
{[%emt 00:06:00]} gxf3 {[%clk 00:25:49]} {[%emt 00:05:41]} 34. Bxf3 {[%clk
00:32:38]} {[%emt 00:00:10]} Rg8 {[%clk 00:25:42]} {[%emt 00:00:36]} 35. Ke3
{[%clk 00:31:53]} {[%emt 00:01:15]} Rxg3 {[%clk 00:25:29]} {[%emt 00:00:43]} 36.
Na5 {[%clk 00:24:46]} {[%emt 00:07:37]} Ne4 {[%clk 00:22:49]} {[%emt 00:03:10]}
37. Kf4 {[%clk 00:23:47]} {[%emt 00:01:29]} Rg7 {[%clk 00:21:12]} {[%emt
00:02:07]} 38. Ne5 {[%clk 00:18:25]} {[%emt 00:05:53]} Ng5 {[%clk 00:19:23]}
{[%emt 00:02:17]} 39. Nxd7 {[%clk 00:17:09]} {[%emt 00:01:48]} Nxf3 {[%clk
00:18:13]} {[%emt 00:01:39]} 40. Kxf3 {[%clk 00:17:30]} {[%emt 00:00:10]} Rxd7
{[%clk 00:18:19]} {[%emt 00:00:24]} 41. b6 {[%clk 00:17:30]} {[%emt 00:00:29]}
b3 {[%clk 00:14:33]} {[%emt 00:04:16]} 42. Nxb3 {[%clk 00:17:46]} {[%emt
00:00:15]} Rb7 {[%clk 00:12:18]} {[%emt 00:02:45]} 43. Rxb7 {[%clk 00:17:58]}
{[%emt 00:00:18]} Bxb7+ {[%clk 00:12:43]} {[%emt 00:00:05]} 44. Kf4 {[%clk
00:18:15]} {[%emt 00:00:12]} Kc6 {[%clk 00:12:39]} {[%emt 00:00:35]} 45. Na5+
{[%clk 00:17:32]} {[%emt 00:01:13]} Kxb6 {[%clk 00:13:01]} {[%emt 00:00:08]} 46.
Nxb7 {[%clk 00:17:56]} {[%emt 00:00:06]} Kxb7 {[%clk 00:13:27]} {[%emt
00:00:04]} 47. Kxf5 {[%clk 00:18:18]} {[%emt 00:00:07]} Kc8 {[%clk 00:08:29]}
{[%emt 00:05:29]} 48. Ke6 {[%clk 00:18:34]} {[%emt 00:00:13]} Kd8 {[%clk
00:08:51]} {[%emt 00:00:08]} 49. Kd6 {[%clk 00:18:57]} {[%emt 00:00:07]} Kc8
{[%clk 00:09:14]} {[%emt 00:00:07]} 50. Kxc5 {[%clk 00:19:21]} {[%emt
00:00:07]} Kc7 {[%clk 00:09:39]} {[%emt 00:00:05]} 51. Kd5 {[%clk 00:19:46]}
{[%emt 00:00:05]} 1/2-1/2